[Event "Early-Titled-Tuesday-Blitz-January-23-2024"]
[Site "Chess.com"]
[Date "2024.01.23"]
[Round "4"]
[White "Doomfist26"]
[Black "1982lf"]
[Result "0-1"]
[WhiteElo "2604"]
[BlackElo "2948"]
[TimeControl "180+1"]
[EndTime "8:36:12 PST"]
[Termination "1982lf won by resignation"]

1. d4 {[%clk 0:02:57]} 1... Nf6 {[%clk 0:02:59.4]} 2. c4 {[%clk 0:02:52.9]} 2...
e6 {[%clk 0:02:59.1]} 3. Nf3 {[%clk 0:02:49.7]} 3... d5 {[%clk 0:02:59]} 4. g3
{[%clk 0:02:43.1]} 4... Be7 {[%clk 0:02:56]} 5. Bg2 {[%clk 0:02:43.7]} 5... O-O
{[%clk 0:02:56.2]} 6. O-O {[%clk 0:02:44.6]} 6... dxc4 {[%clk 0:02:56.4]} 7. Qc2
{[%clk 0:02:44.3]} 7... a6 {[%clk 0:02:56.1]} 8. a4 {[%clk 0:02:44]} 8... Bd7
{[%clk 0:02:56]} 9. Rd1 {[%clk 0:02:43.9]} 9... Bc6 {[%clk 0:02:44.4]} 10. Nc3
{[%clk 0:02:39.8]} 10... Bb4 {[%clk 0:02:26.9]} 11. Bg5 {[%clk 0:02:32.9]} 11...
Nbd7 {[%clk 0:02:23.1]} 12. d5 {[%clk 0:02:24.1]} 12... exd5 {[%clk 0:02:16.4]}
13. Nxd5 {[%clk 0:02:23.4]} 13... Bd6 {[%clk 0:02:14.9]} 14. Qxc4 {[%clk
0:01:23]} 14... Bxd5 {[%clk 0:02:07.4]} 15. Rxd5 {[%clk 0:01:22.6]} 15... Nb6
{[%clk 0:02:06]} 16. Bxf6 {[%clk 0:01:16.1]} 16... Qxf6 {[%clk 0:02:01.4]} 17.
Qd3 {[%clk 0:01:15.8]} 17... Nxd5 {[%clk 0:02:00.8]} 18. Qxd5 {[%clk 0:01:16.7]}
18... Qxb2 {[%clk 0:02:00.6]} 19. Rd1 {[%clk 0:01:14.2]} 19... Qxe2 {[%clk
0:01:55.3]} 20. Ng5 {[%clk 0:01:12.3]} 20... h6 {[%clk 0:01:48.8]} 21. Ne4
{[%clk 0:01:10.1]} 21... Rad8 {[%clk 0:01:38.8]} 22. Qb3 {[%clk 0:01:08.4]}
22... Be5 {[%clk 0:01:24.5]} 23. Rc1 {[%clk 0:01:03.9]} 23... Kh8 {[%clk
0:01:13.7]} 24. Bf3 {[%clk 0:01:03.6]} 24... Qd3 {[%clk 0:01:13.7]} 0-1

[Event "Early-Titled-Tuesday-Blitz-January-23-2024"]
[Site "Chess.com"]
[Date "2024.01.23"]
[Round "4"]
[White "hsd2016"]
[Black "RaugintaBulba"]
[Result "1-0"]
[WhiteElo "2285"]
[BlackElo "2458"]
[TimeControl "180+1"]
[EndTime "8:36:14 PST"]
[Termination "hsd2016 won by checkmate"]

1. e4 {[%clk 0:03:00.9]} 1... c5 {[%clk 0:02:59.6]} 2. Nf3 {[%clk 0:03:01.4]}
2... d6 {[%clk 0:02:58.4]} 3. d4 {[%clk 0:03:00.8]} 3... cxd4 {[%clk 0:02:59.3]}
4. Nxd4 {[%clk 0:03:01.7]} 4... Nf6 {[%clk 0:02:59.6]} 5. Nc3 {[%clk 0:03:01]}
5... Nc6 {[%clk 0:02:59.4]} 6. Bg5 {[%clk 0:03:00.2]} 6... e6 {[%clk 0:02:57.4]}
7. Bb5 {[%clk 0:02:56.4]} 7... Bd7 {[%clk 0:02:56.8]} 8. Qd2 {[%clk 0:02:53]}
8... Qb6 {[%clk 0:02:40.3]} 9. O-O-O {[%clk 0:02:47]} 9... a6 {[%clk 0:01:46.2]}
10. Bxc6 {[%clk 0:02:20.8]} 10... bxc6 {[%clk 0:01:47.1]} 11. e5 {[%clk
0:02:17]} 11... dxe5 {[%clk 0:00:46.9]} 12. Bxf6 {[%clk 0:02:14.1]} 12... gxf6
{[%clk 0:00:47.8]} 13. Nf5 {[%clk 0:01:38.7]} 13... Rd8 {[%clk 0:00:31.8]} 14.
Ne4 {[%clk 0:01:38.7]} 14... exf5 {[%clk 0:00:07.7]} 15. Nxf6+ {[%clk
0:01:37.6]} 15... Ke7 {[%clk 0:00:08.6]} 16. Qd6# {[%clk 0:01:38.2]} 1-0

[Event "Early-Titled-Tuesday-Blitz-January-23-2024"]
[Site "Chess.com"]
[Date "2024.01.23"]
[Round "4"]
[White "Hamisandwich"]
[Black "TigrVShlyape"]
[Result "0-1"]
[WhiteElo "2699"]
[BlackElo "2937"]
[TimeControl "180+1"]
[EndTime "8:36:15 PST"]
[Termination "TigrVShlyape won by checkmate"]

1. e4 {[%clk 0:03:00.9]} 1... e5 {[%clk 0:02:55.1]} 2. Nf3 {[%clk 0:02:58.6]}
2... Nc6 {[%clk 0:02:54.7]} 3. c3 {[%clk 0:02:58]} 3... Nf6 {[%clk 0:02:52.9]}
4. d3 {[%clk 0:02:51.7]} 4... d6 {[%clk 0:02:49.7]} 5. g3 {[%clk 0:02:45.6]}
5... g6 {[%clk 0:02:49.5]} 6. Bg2 {[%clk 0:02:44.9]} 6... Bg7 {[%clk 0:02:49.9]}
7. b4 {[%clk 0:02:45.2]} 7... O-O {[%clk 0:02:49.4]} 8. O-O {[%clk 0:02:44.4]}
8... a6 {[%clk 0:02:42.1]} 9. a4 {[%clk 0:02:41.9]} 9... Qe8 {[%clk 0:02:31.6]}
10. Nbd2 {[%clk 0:02:33.1]} 10... Nh5 {[%clk 0:02:29.5]} 11. Bb2 {[%clk
0:02:18.6]} 11... b6 {[%clk 0:02:22.6]} 12. Nc4 {[%clk 0:02:10.6]} 12... f5
{[%clk 0:02:11.3]} 13. exf5 {[%clk 0:02:05.2]} 13... gxf5 {[%clk 0:02:10.6]} 14.
b5 {[%clk 0:02:02.7]} 14... axb5 {[%clk 0:02:08.6]} 15. axb5 {[%clk 0:02:00.7]}
15... Rxa1 {[%clk 0:02:08.2]} 16. Qxa1 {[%clk 0:01:54.6]} 16... Nd8 {[%clk
0:02:07.7]} 17. Qa7 {[%clk 0:01:47]} 17... Ne6 {[%clk 0:02:05.9]} 18. Na3 {[%clk
0:01:15.1]} 18... e4 {[%clk 0:02:02.6]} 19. dxe4 {[%clk 0:01:10.3]} 19... fxe4
{[%clk 0:02:02.5]} 20. Nd4 {[%clk 0:01:07.7]} 20... Bxd4 {[%clk 0:01:38.3]} 21.
cxd4 {[%clk 0:01:08.6]} 21... d5 {[%clk 0:01:36.8]} 22. Qa4 {[%clk 0:01:03.4]}
22... Ng5 {[%clk 0:01:31.5]} 23. Qb3 {[%clk 0:00:59.8]} 23... Qf7 {[%clk
0:01:30]} 24. Nc2 {[%clk 0:00:48.5]} 24... Bh3 {[%clk 0:01:28.5]} 25. Ne3 {[%clk
0:00:41.5]} 25... Bxg2 {[%clk 0:01:27.6]} 26. Kxg2 {[%clk 0:00:42.4]} 26... Qf3+
{[%clk 0:01:26.6]} 27. Kg1 {[%clk 0:00:40.5]} 27... Nh3# {[%clk 0:01:26.8]} 0-1

[Event "Early-Titled-Tuesday-Blitz-January-23-2024"]
[Site "Chess.com"]
[Date "2024.01.23"]
[Round "4"]
[White "Orphanator2009"]
[Black "Freeeeeeeeeeeeeeeeee"]
[Result "0-1"]
[WhiteElo "2467"]
[BlackElo "2128"]
[TimeControl "180+1"]
[EndTime "8:36:19 PST"]
[Termination "Freeeeeeeeeeeeeeeeee won by resignation"]

1. e4 {[%clk 0:03:00.9]} 1... c5 {[%clk 0:02:55.9]} 2. Nf3 {[%clk 0:03:01]} 2...
d6 {[%clk 0:02:55.3]} 3. d4 {[%clk 0:03:01.4]} 3... cxd4 {[%clk 0:02:56.2]} 4.
Nxd4 {[%clk 0:03:02.3]} 4... Nf6 {[%clk 0:02:57.1]} 5. Nc3 {[%clk 0:03:02.9]}
5... a6 {[%clk 0:02:57.1]} 6. f3 {[%clk 0:03:03.3]} 6... e5 {[%clk 0:02:56.6]}
7. Nb3 {[%clk 0:03:03.6]} 7... Be7 {[%clk 0:02:55.9]} 8. Be3 {[%clk 0:03:03.8]}
8... Be6 {[%clk 0:02:56.5]} 9. Qd2 {[%clk 0:03:04]} 9... Nbd7 {[%clk 0:02:56.6]}
10. O-O-O {[%clk 0:03:02.8]} 10... O-O {[%clk 0:02:55.7]} 11. g4 {[%clk
0:03:02.6]} 11... b5 {[%clk 0:02:52.3]} 12. g5 {[%clk 0:03:01.6]} 12... Ne8
{[%clk 0:02:49.3]} 13. Nd5 {[%clk 0:02:44.9]} 13... Bxd5 {[%clk 0:02:41]} 14.
exd5 {[%clk 0:02:45.8]} 14... f5 {[%clk 0:02:31.6]} 15. gxf6 {[%clk 0:02:42.8]}
15... Nexf6 {[%clk 0:02:31.5]} 16. Na5 {[%clk 0:02:35]} 16... Nb8 {[%clk
0:02:12.3]} 17. Kb1 {[%clk 0:02:20.3]} 17... Kh8 {[%clk 0:02:05.7]} 18. Bg2
{[%clk 0:02:12.7]} 18... Qc7 {[%clk 0:01:58.3]} 19. f4 {[%clk 0:02:10.6]} 19...
e4 {[%clk 0:01:51]} 20. Nb3 {[%clk 0:02:06.3]} 20... Nbd7 {[%clk 0:01:39.6]} 21.
Nd4 {[%clk 0:02:04.7]} 21... Nc5 {[%clk 0:01:27.3]} 22. b4 {[%clk 0:01:36.1]}
22... Na4 {[%clk 0:01:25.9]} 23. Ne6 {[%clk 0:01:35.5]} 23... Nc3+ {[%clk
0:01:19.1]} 24. Ka1 {[%clk 0:01:32.6]} 24... Qc4 {[%clk 0:01:18.3]} 25. Kb2
{[%clk 0:01:15.6]} 25... Qxb4+ {[%clk 0:00:53.4]} 26. Ka1 {[%clk 0:01:15.1]}
26... Qa3 {[%clk 0:00:49.5]} 0-1

[Event "Early-Titled-Tuesday-Blitz-January-23-2024"]
[Site "Chess.com"]
[Date "2024.01.23"]
[Round "4"]
[White "crazy_m_attack"]
[Black "stratacticos"]
[Result "1-0"]
[WhiteElo "2470"]
[BlackElo "2031"]
[TimeControl "180+1"]
[EndTime "8:36:19 PST"]
[Termination "crazy_m_attack won by resignation"]

1. e4 {[%clk 0:03:00.9]} 1... c5 {[%clk 0:02:59]} 2. Nf3 {[%clk 0:03:00.7]} 2...
Nc6 {[%clk 0:02:58.9]} 3. d4 {[%clk 0:03:00.9]} 3... cxd4 {[%clk 0:02:58.9]} 4.
Nxd4 {[%clk 0:03:01.8]} 4... e5 {[%clk 0:02:58.7]} 5. Nb5 {[%clk 0:03:01.2]}
5... a6 {[%clk 0:02:57.3]} 6. Nd6+ {[%clk 0:02:59.8]} 6... Bxd6 {[%clk 0:02:57]}
7. Qxd6 {[%clk 0:03:00.7]} 7... Qf6 {[%clk 0:02:57.1]} 8. Qd2 {[%clk 0:03:01]}
8... Qg6 {[%clk 0:02:53.1]} 9. f3 {[%clk 0:03:01.1]} 9... Nf6 {[%clk 0:02:38.8]}
10. Nc3 {[%clk 0:02:57.9]} 10... O-O {[%clk 0:02:37.6]} 11. Bd3 {[%clk
0:02:22.3]} 11... d6 {[%clk 0:02:35.3]} 12. O-O {[%clk 0:02:21.7]} 12... h6
{[%clk 0:02:31]} 13. b3 {[%clk 0:02:18.2]} 13... Be6 {[%clk 0:02:23.9]} 14. Qf2
{[%clk 0:02:07.4]} 14... Nd4 {[%clk 0:02:08.1]} 15. Be3 {[%clk 0:02:02.9]} 15...
Rac8 {[%clk 0:02:04.5]} 16. Bxd4 {[%clk 0:01:56.3]} 16... exd4 {[%clk
0:02:03.9]} 17. Qxd4 {[%clk 0:01:57.2]} 17... Nh5 {[%clk 0:02:01.7]} 18. Ne2
{[%clk 0:01:56.1]} 18... Rfd8 {[%clk 0:01:57]} 19. f4 {[%clk 0:01:51.9]} 19...
f5 {[%clk 0:01:54.2]} 20. exf5 {[%clk 0:01:46.6]} 20... Bxf5 {[%clk 0:01:52.8]}
21. Qd5+ {[%clk 0:01:45.6]} 21... Qe6 {[%clk 0:01:52.3]} 22. Qxf5 {[%clk
0:01:42.5]} 22... Qe3+ {[%clk 0:01:43.1]} 23. Kh1 {[%clk 0:01:41]} 23... Nf6
{[%clk 0:01:44]} 24. Ng3 {[%clk 0:01:24.8]} 24... Rc5 {[%clk 0:01:40]} 25. Qg6
{[%clk 0:01:23.9]} 25... Re8 {[%clk 0:01:07.2]} 26. Nf5 {[%clk 0:01:18.7]} 1-0

[Event "Early-Titled-Tuesday-Blitz-January-23-2024"]
[Site "Chess.com"]
[Date "2024.01.23"]
[Round "4"]
[White "BardArtem"]
[Black "annasargsyan_m"]
[Result "1-0"]
[WhiteElo "2819"]
[BlackElo "2562"]
[TimeControl "180+1"]
[EndTime "8:36:21 PST"]
[Termination "BardArtem won by resignation"]

1. e4 {[%clk 0:03:00.9]} 1... c6 {[%clk 0:02:59.7]} 2. Nf3 {[%clk 0:02:56.4]}
2... d5 {[%clk 0:03:00.6]} 3. exd5 {[%clk 0:02:57.1]} 3... cxd5 {[%clk
0:03:01.5]} 4. Ne5 {[%clk 0:02:57.7]} 4... Nf6 {[%clk 0:03:01.2]} 5. d4 {[%clk
0:02:58.4]} 5... g6 {[%clk 0:03:01.7]} 6. c3 {[%clk 0:02:58.5]} 6... Bg7 {[%clk
0:03:02.3]} 7. Bd3 {[%clk 0:02:58.7]} 7... O-O {[%clk 0:03:03]} 8. O-O {[%clk
0:02:59.4]} 8... Bf5 {[%clk 0:03:02.7]} 9. Re1 {[%clk 0:03:00]} 9... Nc6 {[%clk
0:03:01.3]} 10. Bf1 {[%clk 0:02:58.4]} 10... Rc8 {[%clk 0:03:01.5]} 11. Bf4
{[%clk 0:02:58]} 11... Nh5 {[%clk 0:03:00.9]} 12. Nxc6 {[%clk 0:02:58]} 12...
Rxc6 {[%clk 0:03:00.5]} 13. Be3 {[%clk 0:02:57.4]} 13... Nf6 {[%clk 0:02:59.4]}
14. Nd2 {[%clk 0:02:56.6]} 14... Qb6 {[%clk 0:02:59.4]} 15. Qb3 {[%clk
0:02:55.6]} 15... Qc7 {[%clk 0:02:58.6]} 16. Nf3 {[%clk 0:02:55.9]} 16... Rb6
{[%clk 0:02:56]} 17. Qa3 {[%clk 0:02:56.1]} 17... Re8 {[%clk 0:02:51.1]} 18. h3
{[%clk 0:02:54.3]} 18... Ne4 {[%clk 0:02:50.5]} 19. Nd2 {[%clk 0:02:52.5]} 19...
h6 {[%clk 0:02:43.8]} 20. Nxe4 {[%clk 0:02:52.8]} 20... Bxe4 {[%clk 0:02:44.7]}
21. Rac1 {[%clk 0:02:43.6]} 21... g5 {[%clk 0:02:40.6]} 22. c4 {[%clk
0:02:43.2]} 22... Qd7 {[%clk 0:02:40.6]} 23. c5 {[%clk 0:02:41.8]} 23... Rg6
{[%clk 0:02:40]} 24. Qxa7 {[%clk 0:02:34.5]} 24... g4 {[%clk 0:02:22.8]} 25. h4
{[%clk 0:02:22.8]} 25... Qf5 {[%clk 0:01:51.5]} 26. Qxb7 {[%clk 0:02:11.5]}
26... Bf6 {[%clk 0:01:09.5]} 27. c6 {[%clk 0:02:02.7]} 27... g3 {[%clk 0:01:00]}
28. Qd7 {[%clk 0:01:43.1]} 28... gxf2+ {[%clk 0:00:56.7]} 29. Bxf2 {[%clk
0:01:44]} 29... Rc8 {[%clk 0:00:38.9]} 30. Rxe4 {[%clk 0:01:39.7]} 1-0

[Event "Early-Titled-Tuesday-Blitz-January-23-2024"]
[Site "Chess.com"]
[Date "2024.01.23"]
[Round "4"]
[White "NewYearGirl"]
[Black "MVM2008"]
[Result "1-0"]
[WhiteElo "2380"]
[BlackElo "2548"]
[TimeControl "180+1"]
[EndTime "8:36:23 PST"]
[Termination "NewYearGirl won by resignation"]

1. e4 {[%clk 0:02:59.6]} 1... e5 {[%clk 0:02:58.7]} 2. Nf3 {[%clk 0:02:59.6]}
2... Nf6 {[%clk 0:02:56.9]} 3. Bc4 {[%clk 0:02:57.1]} 3... Nc6 {[%clk
0:02:55.2]} 4. d4 {[%clk 0:02:53.4]} 4... exd4 {[%clk 0:02:49.6]} 5. Ng5 {[%clk
0:02:53.6]} 5... d5 {[%clk 0:02:43.2]} 6. exd5 {[%clk 0:02:53.7]} 6... Ne5
{[%clk 0:02:43.3]} 7. Qe2 {[%clk 0:02:54.3]} 7... Bd6 {[%clk 0:02:25.2]} 8. f4
{[%clk 0:02:50.2]} 8... Bg4 {[%clk 0:02:23.6]} 9. Nf3 {[%clk 0:02:43.4]} 9...
Nd7 {[%clk 0:01:33.5]} 10. fxe5 {[%clk 0:02:39.3]} 10... Nxe5 {[%clk 0:01:34.4]}
11. Bf4 {[%clk 0:02:18.5]} 11... O-O {[%clk 0:01:14.8]} 12. Bxe5 {[%clk
0:02:17.8]} 12... Bxe5 {[%clk 0:01:15.7]} 13. O-O {[%clk 0:02:08.9]} 13... Re8
{[%clk 0:01:11.1]} 14. Qf2 {[%clk 0:02:04.9]} 14... d3 {[%clk 0:00:45.6]} 15.
Nxe5 {[%clk 0:02:03.3]} 15... Rxe5 {[%clk 0:00:41.8]} 16. Qxf7+ {[%clk
0:01:57.9]} 16... Kh8 {[%clk 0:00:41.8]} 17. Bxd3 {[%clk 0:01:48.3]} 17... Qd6
{[%clk 0:00:36.9]} 18. Nc3 {[%clk 0:01:43.7]} 18... Rae8 {[%clk 0:00:31]} 19.
Ne4 {[%clk 0:01:38.4]} 19... Qb6+ {[%clk 0:00:21.8]} 20. Kh1 {[%clk 0:01:38]}
20... Qd4 {[%clk 0:00:12.3]} 21. Qf8+ {[%clk 0:01:37.3]} 1-0

[Event "Early-Titled-Tuesday-Blitz-January-23-2024"]
[Site "Chess.com"]
[Date "2024.01.23"]
[Round "4"]
[White "zurzan"]
[Black "Timerkhanov"]
[Result "0-1"]
[WhiteElo "2020"]
[BlackElo "2672"]
[TimeControl "180+1"]
[EndTime "8:36:26 PST"]
[Termination "Timerkhanov won by resignation"]

1. c4 {[%clk 0:03:00.7]} 1... Nf6 {[%clk 0:02:57.1]} 2. g3 {[%clk 0:03:00.9]}
2... c6 {[%clk 0:02:56.8]} 3. Nc3 {[%clk 0:02:59.6]} 3... d5 {[%clk 0:02:57.1]}
4. cxd5 {[%clk 0:02:59.7]} 4... cxd5 {[%clk 0:02:57.3]} 5. d4 {[%clk 0:03:00]}
5... Nc6 {[%clk 0:02:57.7]} 6. Bg2 {[%clk 0:02:59.6]} 6... a6 {[%clk 0:02:50.9]}
7. a3 {[%clk 0:02:58.8]} 7... Bf5 {[%clk 0:02:50.7]} 8. Nf3 {[%clk 0:02:52.3]}
8... e6 {[%clk 0:02:50.3]} 9. O-O {[%clk 0:02:51.9]} 9... Be7 {[%clk 0:02:49.6]}
10. Bf4 {[%clk 0:02:49.4]} 10... O-O {[%clk 0:02:49.2]} 11. Ne5 {[%clk
0:02:45.8]} 11... Rc8 {[%clk 0:02:45.6]} 12. Rc1 {[%clk 0:02:44]} 12... Na5
{[%clk 0:02:38.2]} 13. e4 {[%clk 0:02:13.7]} 13... Nxe4 {[%clk 0:02:20.8]} 14.
g4 {[%clk 0:02:06.1]} 14... Nxc3 {[%clk 0:02:16.9]} 15. bxc3 {[%clk 0:02:05.1]}
15... Be4 {[%clk 0:02:13.1]} 16. f3 {[%clk 0:02:04.1]} 16... Bg6 {[%clk
0:02:13]} 17. Nxg6 {[%clk 0:02:03.2]} 17... hxg6 {[%clk 0:02:12.3]} 18. Re1
{[%clk 0:01:50.7]} 18... Bxa3 {[%clk 0:02:08.1]} 19. Ra1 {[%clk 0:01:49.2]}
19... Nc4 {[%clk 0:02:08.1]} 20. Qb3 {[%clk 0:01:44.5]} 20... Bd6 {[%clk
0:02:03.9]} 21. Bc1 {[%clk 0:01:30.7]} 21... Qc7 {[%clk 0:02:00.3]} 22. f4
{[%clk 0:00:46.9]} 22... Bxf4 {[%clk 0:01:55.7]} 23. Bxf4 {[%clk 0:00:47.3]}
23... Qxf4 {[%clk 0:01:56.2]} 24. Qxb7 {[%clk 0:00:47.1]} 24... Qxg4 {[%clk
0:01:45.5]} 25. Qxa6 {[%clk 0:00:31.3]} 25... Rb8 {[%clk 0:01:43.1]} 26. Rad1
{[%clk 0:00:25.9]} 26... Rb2 {[%clk 0:01:40.7]} 0-1

[Event "Early-Titled-Tuesday-Blitz-January-23-2024"]
[Site "Chess.com"]
[Date "2024.01.23"]
[Round "4"]
[White "toninhojit"]
[Black "baki83"]
[Result "0-1"]
[WhiteElo "2450"]
[BlackElo "2849"]
[TimeControl "180+1"]
[EndTime "8:36:29 PST"]
[Termination "baki83 won by resignation"]

1. d4 {[%clk 0:03:00.9]} 1... d5 {[%clk 0:02:56]} 2. c4 {[%clk 0:03:00.9]} 2...
dxc4 {[%clk 0:02:56.3]} 3. Nf3 {[%clk 0:03:01.1]} 3... Nf6 {[%clk 0:02:56]} 4.
e3 {[%clk 0:03:01.1]} 4... e6 {[%clk 0:02:56.1]} 5. Bxc4 {[%clk 0:03:01.2]} 5...
a6 {[%clk 0:02:56.7]} 6. b3 {[%clk 0:02:59.9]} 6... c5 {[%clk 0:02:56.2]} 7. O-O
{[%clk 0:02:59.4]} 7... b5 {[%clk 0:02:55.1]} 8. Be2 {[%clk 0:02:59.2]} 8... Bb7
{[%clk 0:02:55.5]} 9. Bb2 {[%clk 0:02:59.8]} 9... Nbd7 {[%clk 0:02:55.2]} 10.
Ne5 {[%clk 0:02:50.3]} 10... Nxe5 {[%clk 0:02:38.7]} 11. dxe5 {[%clk 0:02:51.2]}
11... Qxd1 {[%clk 0:02:32.4]} 12. Rxd1 {[%clk 0:02:52.1]} 12... Nd5 {[%clk
0:02:32.6]} 13. Nc3 {[%clk 0:02:48.3]} 13... Be7 {[%clk 0:02:28.8]} 14. Bf3
{[%clk 0:02:45.9]} 14... O-O-O {[%clk 0:02:24.7]} 15. Rac1 {[%clk 0:02:37]}
15... Nxc3 {[%clk 0:02:22.2]} 16. Bxb7+ {[%clk 0:02:31.7]} 16... Kxb7 {[%clk
0:02:22.2]} 17. Bxc3 {[%clk 0:02:32.6]} 17... Rxd1+ {[%clk 0:02:13.3]} 18. Rxd1
{[%clk 0:02:32.8]} 18... Kc6 {[%clk 0:02:12.6]} 19. Kf1 {[%clk 0:02:30.5]} 19...
b4 {[%clk 0:02:02.9]} 20. Bb2 {[%clk 0:02:28.6]} 20... a5 {[%clk 0:02:03.2]} 21.
Ke2 {[%clk 0:02:27.6]} 21... Ra8 {[%clk 0:02:02.9]} 22. Kd3 {[%clk 0:02:16.7]}
22... Kb5 {[%clk 0:01:40.6]} 23. Kc2 {[%clk 0:02:14.7]} 23... Ra7 {[%clk
0:01:40.8]} 24. Rd2 {[%clk 0:02:03.7]} 24... a4 {[%clk 0:01:39.8]} 25. Rd3
{[%clk 0:02:01.3]} 25... Rc7 {[%clk 0:01:36.6]} 26. Kb1 {[%clk 0:01:56.5]} 26...
h5 {[%clk 0:01:34.7]} 27. Rd1 {[%clk 0:01:46]} 27... g6 {[%clk 0:01:29.6]} 28.
Rd2 {[%clk 0:01:43]} 28... Rb7 {[%clk 0:01:13.3]} 29. Kc2 {[%clk 0:01:41.7]}
29... c4 {[%clk 0:01:10.3]} 30. bxc4+ {[%clk 0:01:39.9]} 30... Kxc4 {[%clk
0:01:10.6]} 31. Rd4+ {[%clk 0:01:40.6]} 31... Kb5 {[%clk 0:01:09.8]} 32. g3
{[%clk 0:01:32.1]} 32... Rc7+ {[%clk 0:01:01.1]} 33. Kd3 {[%clk 0:01:32.1]}
33... a3 {[%clk 0:00:57.8]} 34. Ba1 {[%clk 0:01:24.6]} 34... Rc1 {[%clk
0:00:56.2]} 35. Rd7 {[%clk 0:01:21]} 35... Rd1+ {[%clk 0:00:53.9]} 0-1

[Event "Early-Titled-Tuesday-Blitz-January-23-2024"]
[Site "Chess.com"]
[Date "2024.01.23"]
[Round "4"]
[White "Alexchess1984"]
[Black "ural58"]
[Result "1-0"]
[WhiteElo "2661"]
[BlackElo "2437"]
[TimeControl "180+1"]
[EndTime "8:36:32 PST"]
[Termination "Alexchess1984 won by resignation"]

1. e4 {[%clk 0:03:00.7]} 1... d5 {[%clk 0:02:58.5]} 2. exd5 {[%clk 0:03:00.9]}
2... Qxd5 {[%clk 0:02:57.5]} 3. Nc3 {[%clk 0:03:00.3]} 3... Qa5 {[%clk
0:02:57.3]} 4. d4 {[%clk 0:03:00.8]} 4... Nf6 {[%clk 0:02:57.4]} 5. Nf3 {[%clk
0:03:00.8]} 5... Nc6 {[%clk 0:02:48.2]} 6. Bb5 {[%clk 0:02:51.7]} 6... Ne4
{[%clk 0:02:47]} 7. a4 {[%clk 0:02:42]} 7... Nxc3 {[%clk 0:02:46.8]} 8. bxc3
{[%clk 0:02:39.8]} 8... a6 {[%clk 0:02:47]} 9. Bxc6+ {[%clk 0:02:39.4]} 9...
bxc6 {[%clk 0:02:46.5]} 10. O-O {[%clk 0:02:40]} 10... Bg4 {[%clk 0:02:46.4]}
11. h3 {[%clk 0:02:39.3]} 11... Qxc3 {[%clk 0:02:29.3]} 12. hxg4 {[%clk
0:02:23.2]} 12... Qxa1 {[%clk 0:01:15.6]} 13. Ne5 {[%clk 0:02:23.1]} 13... Qxa4
{[%clk 0:01:14.2]} 14. Qf3 {[%clk 0:02:22.9]} 14... f6 {[%clk 0:01:13.8]} 15.
Nxc6 {[%clk 0:02:22.8]} 15... e6 {[%clk 0:01:13.4]} 16. d5 {[%clk 0:02:19.5]}
16... Bd6 {[%clk 0:01:11.7]} 17. dxe6 {[%clk 0:02:15.5]} 17... O-O {[%clk
0:01:11.8]} 18. Qd5 {[%clk 0:02:14.7]} 18... Kh8 {[%clk 0:01:10.2]} 19. c4
{[%clk 0:02:06.7]} 19... Rfe8 {[%clk 0:01:08.4]} 20. g5 {[%clk 0:02:04.7]} 20...
fxg5 {[%clk 0:01:05.9]} 21. Bxg5 {[%clk 0:02:04.2]} 21... Qc2 {[%clk 0:01:05.6]}
22. e7 {[%clk 0:01:53.5]} 22... Qg6 {[%clk 0:01:04.9]} 23. Bh4 {[%clk
0:01:49.6]} 23... a5 {[%clk 0:01:04.8]} 24. c5 {[%clk 0:01:34.4]} 24... Bf4
{[%clk 0:00:53.8]} 25. Nd8 {[%clk 0:01:34.4]} 25... h6 {[%clk 0:00:48.8]} 26.
Qxa8 {[%clk 0:01:33.4]} 1-0

[Event "Early-Titled-Tuesday-Blitz-January-23-2024"]
[Site "Chess.com"]
[Date "2024.01.23"]
[Round "4"]
[White "Shuvalov"]
[Black "ClaudiaSof"]
[Result "1-0"]
[WhiteElo "2460"]
[BlackElo "2259"]
[TimeControl "180+1"]
[EndTime "8:36:36 PST"]
[Termination "Shuvalov won by resignation"]

1. d4 {[%clk 0:02:53]} 1... e6 {[%clk 0:02:57.6]} 2. e4 {[%clk 0:02:52.6]} 2...
b6 {[%clk 0:02:56.7]} 3. Bd3 {[%clk 0:02:51.8]} 3... Bb7 {[%clk 0:02:56.7]} 4.
Nf3 {[%clk 0:02:51.9]} 4... g6 {[%clk 0:02:51.6]} 5. c4 {[%clk 0:02:49.5]} 5...
Bg7 {[%clk 0:02:51.3]} 6. Nc3 {[%clk 0:02:49.8]} 6... a6 {[%clk 0:02:50]} 7. h4
{[%clk 0:02:45.9]} 7... h6 {[%clk 0:02:47.8]} 8. Be3 {[%clk 0:02:45.3]} 8... Ne7
{[%clk 0:02:43.4]} 9. Qd2 {[%clk 0:02:45.3]} 9... d5 {[%clk 0:02:41.2]} 10.
O-O-O {[%clk 0:02:39.2]} 10... dxc4 {[%clk 0:02:34.7]} 11. Bxc4 {[%clk
0:02:38.8]} 11... b5 {[%clk 0:02:35]} 12. Bd3 {[%clk 0:02:35.9]} 12... Nd7
{[%clk 0:02:35]} 13. Kb1 {[%clk 0:02:30.8]} 13... Rc8 {[%clk 0:02:29.4]} 14. Bc2
{[%clk 0:02:26.2]} 14... Nb6 {[%clk 0:02:28.2]} 15. Qe2 {[%clk 0:02:16.9]} 15...
b4 {[%clk 0:02:18.2]} 16. Na4 {[%clk 0:02:15.4]} 16... Qd7 {[%clk 0:02:16.4]}
17. Nc5 {[%clk 0:02:13.9]} 17... Qc6 {[%clk 0:02:10.9]} 18. Ne5 {[%clk
0:02:08.2]} 18... Bxe5 {[%clk 0:02:09.5]} 19. dxe5 {[%clk 0:02:09.1]} 19... Rb8
{[%clk 0:02:00.4]} 20. f4 {[%clk 0:02:05]} 20... Bc8 {[%clk 0:01:59.3]} 21. h5
{[%clk 0:01:59.9]} 21... a5 {[%clk 0:01:54.9]} 22. hxg6 {[%clk 0:01:56.3]} 22...
Nxg6 {[%clk 0:01:54.2]} 23. Qd2 {[%clk 0:01:45.2]} 23... Bb7 {[%clk 0:01:43.7]}
24. Qd3 {[%clk 0:01:38.8]} 24... a4 {[%clk 0:01:41.5]} 25. Rc1 {[%clk
0:01:36.3]} 25... Rd8 {[%clk 0:01:38.3]} 26. Qe2 {[%clk 0:01:35]} 26... Bc8
{[%clk 0:01:25.5]} 27. Bd3 {[%clk 0:01:26.8]} 27... Qa8 {[%clk 0:01:22.8]} 28.
Bb5+ {[%clk 0:01:24.9]} 28... Kf8 {[%clk 0:01:19.1]} 29. f5 {[%clk 0:01:20.1]}
29... Nxe5 {[%clk 0:01:12.5]} 30. Bxh6+ {[%clk 0:01:20]} 30... Ke7 {[%clk
0:01:08.8]} 31. f6+ {[%clk 0:01:14.5]} 31... Kxf6 {[%clk 0:01:02.9]} 32. Qf2+
{[%clk 0:01:14.8]} 32... Ke7 {[%clk 0:00:47.9]} 33. Bg5+ {[%clk 0:01:14.4]} 1-0